{"text_format":"1","workbook":"xlsx","n_sheets":12,"sheets":["Benutzerhinweise","KG 410","KG 420","KG 430","KG 435","KG 440","KG 460","KG 480 ","KG 410-480 Gesamtergebnis","Gesamtliste KG 410-480","Metatabelle","Tabelle1"],"not_rendered":{"charts":0,"images":1,"macros":1,"external_links":0,"defined_names":9,"comments":0,"pivot_tables":0},"unopened":[],"bounds":{"document_bytes":16777216,"sheet_cells":100000,"rows_first":2000,"rows_last":500,"rows_between":2000,"halvings":0,"cell_chars":16384,"cell_head_chars":4096},"cells_cut":0,"cells_raw":0,"read":"whole","date_system":"1900"}

{"sheet":"Benutzerhinweise","index":0,"n_rows":8,"n_cols":3,"rows_kept":8,"cut":false,"hidden":false,"merged":[[5,2,5,3],[7,2,7,3],[4,2,4,5]]}
[]
[]
[]
[]
[null,null,"BNB_4.1.6: Bedienungs- und Instandhaltungsfreundlichkeit der TGA"]
[]
[]
[null,null,"EINFÜHRUNG"]

{"sheet":"KG 410","index":1,"n_rows":9,"n_cols":5,"rows_kept":9,"cut":false,"hidden":false,"merged":[]}
[]
[null,{"$f":"Metatabelle!B2","v":"KG 410 Abwasser-, Wasser-, Gasanlagen"},"Maximale \nPunktzahl","Erreichte\n Punktzahl","Kommentar"]
[null,{"$f":"Metatabelle!B3","v":"Revisionsöffnungen und Platz an Einregulierungs- und Messstellen sind vorhanden und gekennzeichnet."},{"$f":"Metatabelle!C3","v":3}]
[null,{"$f":"Metatabelle!B4","v":"Es wird nachgewiesen, dass die Messwerte und Betriebsparameter der Temperatur, Drücke, Ventilstellungen, Volumen-, Massen- und Energieströme direkt vor Ort an relevanten Haupt- und Unterverteilungen ablesbar/erfassbar sind bzw. dass für diese Messwerte die Möglichkeit der Fernüberwachung besteht."},{"$f":"Metatabelle!C4","v":3}]
[null,{"$f":"Metatabelle!B5","v":"Zur Behebung von Störungen vor Ort besteht eine eindeutige Kontroll- und Identifikationsmöglichkeit, z.B. durch Kennzeichnung der Armaturen und Einbauten (z.B. Auslässe, Filter, Ventile) mit Zuordnung zum Schema)."},{"$f":"Metatabelle!C5","v":3}]
[null,{"$f":"Metatabelle!B6","v":"Es sind zentrale Absperrmöglichkeiten mit Entleer-, Spül- oder\nFüllmöglichkeiten vorhanden.\noder:"},{"$f":"Metatabelle!C6","v":1}]
[null,{"$f":"Metatabelle!B7","v":"Es sind geschossweise Absperrmöglichkeiten mit Entleer-, Spül- oder\nFüllmöglichkeiten vorhanden.\noder:"},{"$f":"Metatabelle!C7","v":2}]
[null,{"$f":"Metatabelle!B8","v":"Es sind raumweise bzw. abschnittsweise Absperrmöglichkeiten mit Entleer-,\nSpül- oder Füllmöglichkeiten vorhanden."},{"$f":"Metatabelle!C8","v":3}]
[null,"Gesamt",{"$f":"SUM(C3:C5)+C8","v":12},{"$f":"SUM(D3:D8)","v":0}]

{"sheet":"KG 420","index":2,"n_rows":10,"n_cols":5,"rows_kept":10,"cut":false,"hidden":false,"merged":[]}
[]
[null,{"$f":"Metatabelle!B9","v":"KG 420 Wärmeversorgungsanlagen"},"Maximale \nPunktzahl","Erreichte\n Punktzahl","Kommentar"]
[null,{"$f":"Metatabelle!B10","v":"Einstellungen an allen Anlagen können in den Technikzentralen\nvorgenommen werden."},{"$f":"Metatabelle!C10","v":3}]
[null,{"$f":"Metatabelle!B11","v":"Revisionsöffnungen und Platz an Einregulierungs- und Messstellen sind in\nangemessener Größe vorhanden, gekennzeichnet und gut zugänglich."},{"$f":"Metatabelle!C11","v":3}]
[null,{"$f":"Metatabelle!B12","v":"Es wird nachgewiesen, dass die Messwerte und Betriebsparameter der Temperatur, Drücke, Ventilstellungen, Volumen-, Massen- und Energieströme für die Instandhaltung direkt vor Ort an relevanten Haupt und Unterverteilungen ablesbar sind bzw. dass für diese Messwerte die Möglichkeit der Fernüberwachung besteht."},{"$f":"Metatabelle!C12","v":3}]
[null,{"$f":"Metatabelle!B13","v":"Zur Behebung von Störungen vor Ort besteht eine eindeutige Kontroll- und Identifikationsmöglichkeit, z.B. durch Kennzeichnung der Armaturen und Einbauten (z.B. Auslässe, Filter, Ventile) mit Zuordnung zum Schema)."},{"$f":"Metatabelle!C13","v":3}]
[null,{"$f":"Metatabelle!B14","v":"Es sind zentrale Absperrmöglichkeiten mit Entleer-, Spül- oder\nFüllmöglichkeiten vorhanden.\noder:"},{"$f":"Metatabelle!C14","v":1}]
[null,{"$f":"Metatabelle!B15","v":"Es sind geschossweise Absperrmöglichkeiten mit Entleer-, Spül- oder\nFüllmöglichkeiten vorhanden.\noder:"},{"$f":"Metatabelle!C15","v":2}]
[null,{"$f":"Metatabelle!B16","v":"Es sind raumweise bzw. abschnittsweise Absperrmöglichkeiten mit Entleer-,\nSpül- oder Füllmöglichkeiten vorhanden."},{"$f":"Metatabelle!C16","v":3}]
[null,"Gesamt",{"$f":"SUM(C3:C6)+C9","v":15},{"$f":"SUM(D3:D9)","v":0}]

{"sheet":"KG 430","index":3,"n_rows":9,"n_cols":5,"rows_kept":9,"cut":false,"hidden":false,"merged":[]}
[]
[null,{"$f":"Metatabelle!B17","v":"KG 430 Lufttechnische Anlagen"},"Maximale \nPunktzahl","Erreichte\n Punktzahl","Kommentar"]
[null,"Ist die TGA-Komponente (KG 430)  Bestandteil des Gebäudes?","Ja"]
[null,{"$f":"Metatabelle!B18","v":"Die Lüftung wird über eine zentrale mechanische Lüftung bzw.\nKlimatisierung sichergestellt.\nFolgende Anforderungen werden erfüllt:\n- Zentralgeräte mit Revisionstüren und Innenbeleuchtung\n- Kanalsystem mit genügend Revisions- und Reinigungsöffnungen\n- Mindestanforderungen der VDI 6022 \"Raumlufttechnik, Raumluftqualität\"\nwerden eingehalten."},{"$f":"Metatabelle!C18","v":3}]
[null,{"$f":"Metatabelle!B19","v":"Einstellungen an allen Anlagen können in den Technikzentralen\nvorgenommen werden."},{"$f":"Metatabelle!C19","v":3}]
[null,{"$f":"Metatabelle!B20","v":"Revisionsöffnungen und Platz an Einregulierungs- und Messstellen sind in angemessener Größe vorhanden, gekennzeichnet und gut zugänglich"},{"$f":"Metatabelle!C20","v":3}]
[null,{"$f":"Metatabelle!B21","v":"Es wird nachgewiesen, dass die Messwerte und Betriebsparameter der Temperatur, Drücke, Ventilstellungen, Volumen-, Massen- und Energieströme für die Instandhaltung direkt vor Ort an relevanten Haupt und Unterverteilungen ablesbar sind bzw. dass für diese Messwerte die Möglichkeit der Fernüberwachung besteht."},{"$f":"Metatabelle!C21","v":3}]
[null,{"$f":"Metatabelle!B22","v":"Zur Behebung von Störungen vor Ort besteht eine eindeutige Kontroll- und\nIdentifikationsmöglichkeit, z.B. durch Kennzeichnung der Armaturen und\nEinbauten (z.B. Auslässe, Filter, Ventile) mit Zuordnung zum Schema)."},{"$f":"Metatabelle!C22","v":3}]
[null,"Gesamt",{"$f":"SUM(C4:C8)","v":15},{"$f":"IF(C3=\"Ja\",SUM(D4:D8),C9)","v":0}]

{"sheet":"KG 435","index":4,"n_rows":9,"n_cols":5,"rows_kept":9,"cut":false,"hidden":false,"merged":[]}
[]
[null,{"$f":"Metatabelle!B23","v":"KG 435 Kälteversorgungsanlagen"},"Maximale \nPunktzahl","Erreichte\n Punktzahl","Kommentar"]
[null,"Ist die TGA-Komponente (KG 435)  Bestandteil des Gebäudes?","Ja"]
[null,{"$f":"Metatabelle!B24","v":"Die Kühlung wird über eine zentrale Kälteanlage sichergestellt.\nFolgende Anforderungen werden erfüllt:\n- Zentralgeräte mit Revisionstüren und Innenbeleuchtung\n- Kanalsystem mit genügend Revisions– und Reinigungsöffnungen\n- Mindestanforderungen der VDI 6022 \"Raumlufttechnik, Raumluftqualität\"\nwerden eingehalten."},{"$f":"Metatabelle!C24","v":3}]
[null,{"$f":"Metatabelle!B25","v":"Einstellungen an allen Anlagen können in den Technikzentralen\nvorgenommen werden."},{"$f":"Metatabelle!C25","v":3}]
[null,{"$f":"Metatabelle!B26","v":"Revisionsöffnungen und Platz an Einregulierungs- und Messstellen sind in\nangemessener Größe vorhanden, gekennzeichnet und gut zugänglich."},{"$f":"Metatabelle!C26","v":3}]
[null,{"$f":"Metatabelle!B27","v":"Es wird nachgewiesen, dass die Messwerte und Betriebsparameter der Temperatur, Drücke, Ventilstellungen, Volumen-, Massen- und Energieströme für die Instandhaltung direkt vor Ort an relevanten Haupt und Unterverteilungen ablesbar sind bzw. dass für diese Messwerte die Möglichkeit der Fernüberwachung besteht.,"},{"$f":"Metatabelle!C27","v":3}]
[null,{"$f":"Metatabelle!B28","v":"Zur Behebung von Störungen vor Ort besteht eine eindeutige Kontroll- und\nIdentifikationsmöglichkeit, z.B. durch Kennzeichnung der Armaturen und\nEinbauten (z.B. Auslässe, Filter, Ventile) mit Zuordnung zum Schema)."},{"$f":"Metatabelle!C28","v":3}]
[null,"Gesamt",{"$f":"SUM(C4:C8)","v":15},{"$f":"IF(C3=\"Ja\",SUM(D4:D8),C9)","v":0}]

{"sheet":"KG 440","index":5,"n_rows":13,"n_cols":5,"rows_kept":13,"cut":false,"hidden":false,"merged":[]}
[]
[null,{"$f":"Metatabelle!B29","v":"KG 440 Starkstromanlagen"},"Maximale \nPunktzahl","Erreichte\n Punktzahl","Kommentar"]
[null,{"$f":"Metatabelle!B30","v":"Einstellungen an allen Anlagen können in den Technikzentralen vorgenommen werden."},{"$f":"Metatabelle!C30","v":3}]
[null,{"$f":"Metatabelle!B31","v":"Revisionsöffnungen und Platz an Einregulierungs- und Messstellen sind in angemessener Größe vorhanden, gekennzeichnet und gut zugänglich."},{"$f":"Metatabelle!C31","v":3}]
[null,{"$f":"Metatabelle!B32","v":"Es wird nachgewiesen, dass die Messwerte und Betriebsparameter der Temperatur, Drücke, Ventilstellungen, Volumen-, Massen- und Energieströme für die Instandhaltung direkt vor Ort an relevanten Haupt und Unterverteilungen ablesbar sind bzw. dass für diese Messwerte die Möglichkeit der Fernüberwachung besteht."},{"$f":"Metatabelle!C32","v":3}]
[null,{"$f":"Metatabelle!B33","v":"Zur Behebung von Störungen vor Ort besteht eine eindeutige Kontroll- und Identifikationsmöglichkeit, z.B. durch Kennzeichnung der Leitungen mit Zuordnung zum Schema)."},{"$f":"Metatabelle!C33","v":3}]
[null,{"$f":"Metatabelle!B34","v":"Die Unterverteilungen und Messstellen sind außerhalb von Arbeits- / Aufenthaltsbereichen aus zugänglich."},{"$f":"Metatabelle!C34","v":1}]
[null,{"$f":"Metatabelle!B35","v":"Die Sicherheitsbeleuchtung und die Fluchtwegkennzeichnung verfügen über eine Zentralversorgung (ohne Einzelbatterien)."},{"$f":"Metatabelle!C35","v":1}]
[null,{"$f":"Metatabelle!B36","v":"Erreichbarkeit der Leuchten für Reinigung und Austausch"}]
[null,{"$f":"Metatabelle!B37","v":"In den Arbeitsbereichen sind zum Austauschen der Leuchtmittel keine Gerüste, Hubarbeitsbühnen oder Absturzsicherungen notwendig."},{"$f":"Metatabelle!C37","v":6}]
[null,{"$f":"Metatabelle!B38","v":"In Treppenhäusern sind zum Austauschen der Leuchtmittel keine Gerüste, Hubarbeitsbühnen oder Absturzsicherungen notwendig."},{"$f":"Metatabelle!C38","v":2}]
[null,{"$f":"Metatabelle!B39","v":"In Atrien, Foyers und Eingangshallen sind zum Austauschen der Leuchtmittel keine Gerüste, Hubarbeitsbühnen oder Absturzsicherungen notwendig."},{"$f":"Metatabelle!C39","v":2}]
[null,"Gesamt",{"$f":"SUM(C3:C12)","v":24},{"$f":"SUM(D3:D12)","v":0}]

{"sheet":"KG 460","index":6,"n_rows":5,"n_cols":5,"rows_kept":5,"cut":false,"hidden":false,"merged":[]}
[]
[null,{"$f":"Metatabelle!B40","v":"KG 460 Förderanlagen"},"Maximale \nPunktzahl","Erreichte\n Punktzahl","Kommentar"]
[null,"Ist die TGA-Komponente (KG 460)  Bestandteil des Gebäudes?","Ja"]
[null,{"$f":"Metatabelle!B41","v":"Für die Aufzugsanlage ist ein Triebwerksraum vorhanden mit Antriebs- und Steuerungseinheit."},4]
[null,"Gesamt",{"$f":"SUM(C4)","v":4},{"$f":"IF(C3=\"Ja\",SUM(D4),C5)","v":0}]

{"sheet":"KG 480 ","index":7,"n_rows":8,"n_cols":5,"rows_kept":8,"cut":false,"hidden":false,"merged":[]}
[]
[null,{"$f":"Metatabelle!B42","v":"KG 480 Gebäudeautomation"},"Maximale \nPunktzahl","Erreichte\n Punktzahl","Kommentar"]
[null,{"$f":"Metatabelle!B43","v":"Alle vorhandenen Gewerke der Kostengruppen 410, 420, 430, 435, 440, 460 sind in eine Gebäudeautomation integriert. Störungen können per Ferndiagnose festgestellt werden."},{"$f":"Metatabelle!C43","v":10}]
[null,{"$f":"Metatabelle!B44","v":"CAFM-Funktionen sind in die Management-Funktionen der Gebäudeautomation integriert."},{"$f":"Metatabelle!C44","v":5}]
[null,{"$f":"Metatabelle!B45","v":"Das Gebäudeautomations-System stellt Daten für ein CAFM-System an einer offenen Schnittstelle bereit."},{"$f":"Metatabelle!C45","v":5}]
[null,{"$f":"Metatabelle!B46","v":"Ein Kennzeichnungssystem für Datenpunkte der Gebäudeautomation ist vorhanden und Teil des CAFM-Kennzeichnungssystems."},{"$f":"Metatabelle!C46","v":5}]
[null,{"$f":"Metatabelle!B47","v":"Es ist keine Gebäudeautomation vorhanden."},{"$f":"Metatabelle!C47","v":0}]
[null,"Gesamt",{"$f":"SUM(C3:C7)","v":25},{"$f":"SUM(D3:D7)","v":0}]

{"sheet":"KG 410-480 Gesamtergebnis","index":8,"n_rows":10,"n_cols":5,"rows_kept":10,"cut":false,"hidden":false,"merged":[]}
[]
[null,"Gesamtbewertung","Maximale \nPunktzahl","Erreichte\n Punktzahl","Kommentar\nbei nicht-Gebäudebestandteil"]
[null,{"$f":"Metatabelle!B2","v":"KG 410 Abwasser-, Wasser-, Gasanlagen"},{"$f":"Metatabelle!C2","v":12},{"$f":"'KG 410'!D9","v":0}]
[null,{"$f":"Metatabelle!B9","v":"KG 420 Wärmeversorgungsanlagen"},{"$f":"Metatabelle!C9","v":15},{"$f":"'KG 420'!D10","v":0}]
[null,{"$f":"Metatabelle!B17","v":"KG 430 Lufttechnische Anlagen"},{"$f":"Metatabelle!C17","v":15},{"$f":"'KG 430'!D9","v":0}]
[null,{"$f":"Metatabelle!B23","v":"KG 435 Kälteversorgungsanlagen"},{"$f":"Metatabelle!C23","v":15},{"$f":"'KG 435'!D9","v":0}]
[null,{"$f":"Metatabelle!B29","v":"KG 440 Starkstromanlagen"},{"$f":"Metatabelle!C29","v":24},{"$f":"'KG 440'!D13","v":0}]
[null,{"$f":"Metatabelle!B40","v":"KG 460 Förderanlagen"},{"$f":"Metatabelle!C40","v":4},{"$f":"'KG 460'!D5","v":0}]
[null,{"$f":"Metatabelle!B42","v":"KG 480 Gebäudeautomation"},{"$f":"Metatabelle!C42","v":25},{"$f":"'KG 480 '!D8","v":0}]
[null,"Gesamt",{"$f":"Metatabelle!C1","v":110},{"$f":"IF(SUM(D3:D9)>100,100,SUM(D3:D9))","v":0}]

{"sheet":"Gesamtliste KG 410-480","index":9,"n_rows":27,"n_cols":11,"rows_kept":27,"cut":false,"hidden":false,"merged":[[26,3,26,10],[1,2,1,3],[2,2,2,3]]}
[]
[null,null,"BNB_4.1.6: \nBedienungs- und Instandhaltungsfreundlichkeit der TGA",null,"KG 410 Abwasser-, Wasser-, Gasanlagen","KG 420 Wärme-versorgungs-anlagen","KG 430\n Luft-technische Anlagen","KG 435 Kältever-sorgungs-anlagen","KG 440 Starkstrom-anlagen","KG 460 Förder-anlagen","KG 480 Gebäude-automation"]
[null,null,"Ist die TGA-Komponente (KG) Bestandteil des Gebäudes?",null,null,null,"Ja","Ja",null,"Ja"]
[null,"relevante KG","Anforderungsniveau","Maximal-Punktzahl","Erreichte\nPunktzahl","Erreichte\nPunktzahl","Erreichte\nPunktzahl","Erreichte\nPunktzahl","Erreichte\nPunktzahl","Erreichte\nPunktzahl","Erreichte\nPunktzahl"]
[null,"KG 420/430/435/440","Einstellungen an allen Anlagen können in den Technikzentralen\nvorgenommen werden.",{"$f":"Metatabelle!C10","v":3}]
[null,"KG 410/420/430/435/440","Revisionsöffnungen und Platz an Einregulierungs- und Messstellen sind vorhanden und gekennzeichnet.",{"$f":"Metatabelle!C11","v":3}]
[null,"KG 410/420/430/435/440","Es wird nachgewiesen, dass die Messwerte und Betriebsparameter der Temperatur, Drücke, Ventilstellungen, Volumen-, Massen- und Energieströme direkt vor Ort an relevanten Haupt- und Unterverteilungen ablesbar/erfassbar sind bzw. dass für diese Messwerte die Möglichkeit der Fernüberwachung besteht.",{"$f":"Metatabelle!C12","v":3}]
[null,"KG 410/420/430/435/440","Zur Behebung von Störungen vor Ort besteht eine eindeutige Kontroll- und Identifikationsmöglichkeit, z.B. durch Kennzeichnung der Armaturen und Einbauten (z.B. Auslässe, Filter, Ventile) mit Zuordnung zum Schema).",{"$f":"Metatabelle!C5","v":3}]
[null,"KG \n410/420","Es sind zentrale Absperrmöglichkeiten mit Entleer-, Spül- oder\nFüllmöglichkeiten vorhanden.\noder:",{"$f":"Metatabelle!C6","v":1}]
[null,"KG \n410/420","Es sind geschossweise Absperrmöglichkeiten mit Entleer-, Spül- oder\nFüllmöglichkeiten vorhanden.\noder:",{"$f":"Metatabelle!C7","v":2}]
[null,"KG \n410/420","Es sind raumweise bzw. abschnittsweise Absperrmöglichkeiten mit Entleer-,\nSpül- oder Füllmöglichkeiten vorhanden.",{"$f":"Metatabelle!C8","v":3}]
[null,"KG \n430","Die Lüftung wird über eine zentrale mechanische Lüftung bzw.\nKlimatisierung sichergestellt.\nFolgende Anforderungen werden erfüllt:\n- Zentralgeräte mit Revisionstüren und Innenbeleuchtung\n- Kanalsystem mit genügend Revisions- und Reinigungsöffnungen\n- Mindestanforderungen der VDI 6022 \"Raumlufttechnik, Raumluftqualität\"\nwerden eingehalten.",{"$f":"Metatabelle!C18","v":3}]
[null,"KG\n435","Die Kühlung wird über eine zentrale Kälteanlage sichergestellt.\nFolgende Anforderungen werden erfüllt:\n- Zentralgeräte mit Revisionstüren und Innenbeleuchtung\n- Kanalsystem mit genügend Revisions– und Reinigungsöffnungen\n- Mindestanforderungen der VDI 6022 \"Raumlufttechnik, Raumluftqualität\"\nwerden eingehalten.",{"$f":"Metatabelle!C24","v":3}]
[null,"KG\n440","Die Unterverteilungen und Messstellen sind außerhalb von Arbeits- /\nAufenthaltsbereichen aus zugänglich.",{"$f":"Metatabelle!C34","v":1}]
[null,"KG\n440","Die Sicherheitsbeleuchtung und die Fluchtwegkennzeichnung verfügen über\neine Zentralversorgung (ohne Einzelbatterien).",{"$f":"Metatabelle!C35","v":1}]
[null,null,"Erreichbarkeit der Leuchten für Reinigung und Austausch"]
[null,"KG\n440","In den Arbeitsbereichen sind zum Austauschen der Leuchtmittel keine\nGerüste, Hubarbeitsbühnen oder Absturzsicherungen notwendig.",{"$f":"Metatabelle!C37","v":6}]
[null,"KG\n440","In Treppenhäusern sind zum Austauschen der Leuchtmittel keine Gerüste,\nHubarbeitsbühnen oder Absturzsicherungen notwendig.",{"$f":"Metatabelle!C38","v":2}]
[null,"KG\n440","In Atrien, Foyers und Eingangshallen sind zum Austauschen der\nLeuchtmittel keine Gerüste, Hubarbeitsbühnen oder Absturzsicherungen\nnotwendig.",{"$f":"Metatabelle!C39","v":2}]
[null,"KG\n460","Für die Aufzugsanlage ist ein Triebwerksraum vorhanden mit Antriebs- und Steuerungseinheit.",{"$f":"Metatabelle!C41","v":4}]
[null,"KG\n480","Alle vorhandenen Gewerke der Kostengruppen 410, 420, 430, 435, 440, 460 sind in eine Gebäudeautomation integriert. Störungen können per Ferndiagnose festgestellt werden.",{"$f":"Metatabelle!C43","v":10}]
[null,"KG\n480","CAFM-Funktionen sind in die Management-Funktionen der Gebäudeautomation integriert.",{"$f":"Metatabelle!C44","v":5}]
[null,"KG\n480","Das Gebäudeautomations-System stellt Daten für ein CAFM-System an einer offenen Schnittstelle bereit.",{"$f":"Metatabelle!C45","v":5}]
[null,"KG\n480","Ein Kennzeichnungssystem für Datenpunkte der Gebäudeautomation ist vorhanden und Teil des CAFM-Kennzeichnungssystems.",{"$f":"Metatabelle!C46","v":5}]
[null,"KG\n480","Es ist keine Gebäudeautomation vorhanden.",{"$f":"Metatabelle!C47","v":0}]
[null,null,null,"∑",{"$f":"SUM(E5:E25)","v":0},{"$f":"SUM(F5:F25)","v":0},{"$f":"IF(G3=\"Nein\",D5+D6+D7+D8+D12,SUM(G5:G25))","v":0},{"$f":"IF(H3=\"Nein\",D5+D6+D7+D8+D13,SUM(H5:H25))","v":0},0,{"$f":"IF(J3=\"Nein\",D20,SUM(J5:J25))","v":0},{"$f":"SUM(K5:K25)","v":0}]
[null,null,"Gesamtbewertung",{"$f":"IF(SUM(E26:K26)>100,100,SUM(E26:K26))","v":0}]

{"sheet":"Metatabelle","index":10,"n_rows":47,"n_cols":3,"rows_kept":47,"cut":false,"hidden":true,"merged":[]}
[null,"Bedienungs- und Instandhaltungsfreundlichkeit der TGA",{"$f":"C2+C9+C17+C23+C29+C40+C42","v":110}]
[null,"KG 410 Abwasser-, Wasser-, Gasanlagen",{"$f":"SUM(C3:C5)+C8","v":12}]
[null,"Revisionsöffnungen und Platz an Einregulierungs- und Messstellen sind vorhanden und gekennzeichnet.",3]
[null,"Es wird nachgewiesen, dass die Messwerte und Betriebsparameter der Temperatur, Drücke, Ventilstellungen, Volumen-, Massen- und Energieströme direkt vor Ort an relevanten Haupt- und Unterverteilungen ablesbar/erfassbar sind bzw. dass für diese Messwerte die Möglichkeit der Fernüberwachung besteht.",3]
[null,"Zur Behebung von Störungen vor Ort besteht eine eindeutige Kontroll- und Identifikationsmöglichkeit, z.B. durch Kennzeichnung der Armaturen und Einbauten (z.B. Auslässe, Filter, Ventile) mit Zuordnung zum Schema).",3]
[null,"Es sind zentrale Absperrmöglichkeiten mit Entleer-, Spül- oder\nFüllmöglichkeiten vorhanden.\noder:",1]
[null,"Es sind geschossweise Absperrmöglichkeiten mit Entleer-, Spül- oder\nFüllmöglichkeiten vorhanden.\noder:",2]
[null,"Es sind raumweise bzw. abschnittsweise Absperrmöglichkeiten mit Entleer-,\nSpül- oder Füllmöglichkeiten vorhanden.",3]
[null,"KG 420 Wärmeversorgungsanlagen",{"$f":"SUM(C10:C13)+C16","v":15}]
[null,"Einstellungen an allen Anlagen können in den Technikzentralen\nvorgenommen werden.",3]
[null,"Revisionsöffnungen und Platz an Einregulierungs- und Messstellen sind in\nangemessener Größe vorhanden, gekennzeichnet und gut zugänglich.",3]
[null,"Es wird nachgewiesen, dass die Messwerte und Betriebsparameter der Temperatur, Drücke, Ventilstellungen, Volumen-, Massen- und Energieströme für die Instandhaltung direkt vor Ort an relevanten Haupt und Unterverteilungen ablesbar sind bzw. dass für diese Messwerte die Möglichkeit der Fernüberwachung besteht.",3]
[null,"Zur Behebung von Störungen vor Ort besteht eine eindeutige Kontroll- und Identifikationsmöglichkeit, z.B. durch Kennzeichnung der Armaturen und Einbauten (z.B. Auslässe, Filter, Ventile) mit Zuordnung zum Schema).",3]
[null,"Es sind zentrale Absperrmöglichkeiten mit Entleer-, Spül- oder\nFüllmöglichkeiten vorhanden.\noder:",1]
[null,"Es sind geschossweise Absperrmöglichkeiten mit Entleer-, Spül- oder\nFüllmöglichkeiten vorhanden.\noder:",2]
[null,"Es sind raumweise bzw. abschnittsweise Absperrmöglichkeiten mit Entleer-,\nSpül- oder Füllmöglichkeiten vorhanden.",3]
[null,"KG 430 Lufttechnische Anlagen",{"$f":"SUM(C18:C22)","v":15}]
[null,"Die Lüftung wird über eine zentrale mechanische Lüftung bzw.\nKlimatisierung sichergestellt.\nFolgende Anforderungen werden erfüllt:\n- Zentralgeräte mit Revisionstüren und Innenbeleuchtung\n- Kanalsystem mit genügend Revisions- und Reinigungsöffnungen\n- Mindestanforderungen der VDI 6022 \"Raumlufttechnik, Raumluftqualität\"\nwerden eingehalten.",3]
[null,"Einstellungen an allen Anlagen können in den Technikzentralen\nvorgenommen werden.",3]
[null,"Revisionsöffnungen und Platz an Einregulierungs- und Messstellen sind in angemessener Größe vorhanden, gekennzeichnet und gut zugänglich",3]
[null,"Es wird nachgewiesen, dass die Messwerte und Betriebsparameter der Temperatur, Drücke, Ventilstellungen, Volumen-, Massen- und Energieströme für die Instandhaltung direkt vor Ort an relevanten Haupt und Unterverteilungen ablesbar sind bzw. dass für diese Messwerte die Möglichkeit der Fernüberwachung besteht.",3]
[null,"Zur Behebung von Störungen vor Ort besteht eine eindeutige Kontroll- und\nIdentifikationsmöglichkeit, z.B. durch Kennzeichnung der Armaturen und\nEinbauten (z.B. Auslässe, Filter, Ventile) mit Zuordnung zum Schema).",3]
[null,"KG 435 Kälteversorgungsanlagen",{"$f":"SUM(C24:C28)","v":15}]
[null,"Die Kühlung wird über eine zentrale Kälteanlage sichergestellt.\nFolgende Anforderungen werden erfüllt:\n- Zentralgeräte mit Revisionstüren und Innenbeleuchtung\n- Kanalsystem mit genügend Revisions– und Reinigungsöffnungen\n- Mindestanforderungen der VDI 6022 \"Raumlufttechnik, Raumluftqualität\"\nwerden eingehalten.",3]
[null,"Einstellungen an allen Anlagen können in den Technikzentralen\nvorgenommen werden.",3]
[null,"Revisionsöffnungen und Platz an Einregulierungs- und Messstellen sind in\nangemessener Größe vorhanden, gekennzeichnet und gut zugänglich.",3]
[null,"Es wird nachgewiesen, dass die Messwerte und Betriebsparameter der Temperatur, Drücke, Ventilstellungen, Volumen-, Massen- und Energieströme für die Instandhaltung direkt vor Ort an relevanten Haupt und Unterverteilungen ablesbar sind bzw. dass für diese Messwerte die Möglichkeit der Fernüberwachung besteht.,",3]
[null,"Zur Behebung von Störungen vor Ort besteht eine eindeutige Kontroll- und\nIdentifikationsmöglichkeit, z.B. durch Kennzeichnung der Armaturen und\nEinbauten (z.B. Auslässe, Filter, Ventile) mit Zuordnung zum Schema).",3]
[null,"KG 440 Starkstromanlagen",{"$f":"SUM(C30:C39)","v":24}]
[null,"Einstellungen an allen Anlagen können in den Technikzentralen vorgenommen werden.",3]
[null,"Revisionsöffnungen und Platz an Einregulierungs- und Messstellen sind in angemessener Größe vorhanden, gekennzeichnet und gut zugänglich.",3]
[null,"Es wird nachgewiesen, dass die Messwerte und Betriebsparameter der Temperatur, Drücke, Ventilstellungen, Volumen-, Massen- und Energieströme für die Instandhaltung direkt vor Ort an relevanten Haupt und Unterverteilungen ablesbar sind bzw. dass für diese Messwerte die Möglichkeit der Fernüberwachung besteht.",3]
[null,"Zur Behebung von Störungen vor Ort besteht eine eindeutige Kontroll- und Identifikationsmöglichkeit, z.B. durch Kennzeichnung der Leitungen mit Zuordnung zum Schema).",3]
[null,"Die Unterverteilungen und Messstellen sind außerhalb von Arbeits- / Aufenthaltsbereichen aus zugänglich.",1]
[null,"Die Sicherheitsbeleuchtung und die Fluchtwegkennzeichnung verfügen über eine Zentralversorgung (ohne Einzelbatterien).",1]
[null,"Erreichbarkeit der Leuchten für Reinigung und Austausch"]
[null,"In den Arbeitsbereichen sind zum Austauschen der Leuchtmittel keine Gerüste, Hubarbeitsbühnen oder Absturzsicherungen notwendig.",6]
[null,"In Treppenhäusern sind zum Austauschen der Leuchtmittel keine Gerüste, Hubarbeitsbühnen oder Absturzsicherungen notwendig.",2]
[null,"In Atrien, Foyers und Eingangshallen sind zum Austauschen der Leuchtmittel keine Gerüste, Hubarbeitsbühnen oder Absturzsicherungen notwendig.",2]
[null,"KG 460 Förderanlagen",{"$f":"SUM(C41)","v":4}]
[null,"Für die Aufzugsanlage ist ein Triebwerksraum vorhanden mit Antriebs- und Steuerungseinheit.",4]
[null,"KG 480 Gebäudeautomation",{"$f":"SUM(C43:C47)","v":25}]
[null,"Alle vorhandenen Gewerke der Kostengruppen 410, 420, 430, 435, 440, 460 sind in eine Gebäudeautomation integriert. Störungen können per Ferndiagnose festgestellt werden.",10]
[null,"CAFM-Funktionen sind in die Management-Funktionen der Gebäudeautomation integriert.",5]
[null,"Das Gebäudeautomations-System stellt Daten für ein CAFM-System an einer offenen Schnittstelle bereit.",5]
[null,"Ein Kennzeichnungssystem für Datenpunkte der Gebäudeautomation ist vorhanden und Teil des CAFM-Kennzeichnungssystems.",5]
[null,"Es ist keine Gebäudeautomation vorhanden.",0]

{"sheet":"Tabelle1","index":11,"n_rows":2,"n_cols":1,"rows_kept":2,"cut":false,"hidden":true,"merged":[]}
["Ja"]
["Nein"]